bitfinex-derivatives/quotes_ETHF0:USTF0_20250205
["timestamp","ask_amount","ask_price","bid_price","bid_amount"]
[1738760607724,40.8,2787.6,2787.2,1.2]
[1738760608522,0.5402,2787.9,2787.2,1.2]
[1738760608723,0.5402,2787.9,2787.3,4.70165758]
[1738760609231,40.8,2787.8,2787.3,4.70165758]
[1738760610320,41.51716,2787.8,2787.3,4.70165758]
[1738760610525,3.925,2787.7,2787.2,3.2078]
[1738760610720,0.5476,2787.6,2786.8,3.04286179]
[1738760611632,3.2078,2787.4,2786.8,3.04286179]
[1738760611836,0.5432,2787.3,2786.8,3.04286179]
[1738760612034,1.1155,2787.3,2786.8,3.04286179]
[1738760614234,1.1155,2787.3,2786.7,3.21318522]
[1738760614829,1.1155,2787.3,2786.8,3.04286179]
[1738760615026,1.1155,2787.3,2786.8,8.32501858]
[1738760616127,1.1155,2787.3,2786.8,8.86591858]
[1738760616829,1.1155,2787.3,2786.8,3.60656179]
[1738760618434,0.5476,2787.6,2787.1,3.04286179]
[1738760619241,3.2078,2787.7,2787.2,4.59597823]
[1738760620941,3.2078,2787.7,2787.4,3.04286179]
[1738760621335,3.2078,2787.7,2787.5,4.71300194]
[1738760622347,1.0795,2787.9,2787.5,4.71300194]
[1738760622547,0.00538522,2788.0,2787.7,3.2078]
[1738760622847,0.00538522,2788.0,2787.8,4.56417405]
[1738760623340,0.72249522,2788.0,2787.1,3.04286179]
[1738760623548,3.2078,2787.8,2787.1,3.04286179]
[1738760623738,3.2078,2787.8,2787.1,7.69601599]
[1738760624342,3.2078,2787.5,2787.1,4.6531542]
[1738760624545,3.2078,2787.8,2787.1,4.6531542]
[1738760624746,3.2078,2787.8,2787.1,7.69601599]
[1738760625251,3.2078,2787.8,2787.1,3.04286179]
[1738760625452,3.2078,2787.8,2787.2,4.61113791]
[1738760625744,0.5781,2787.9,2787.4,3.04286179]
[1738760625948,0.5781,2787.9,2787.5,0.5554]
[1738760626149,0.5781,2787.9,2787.5,5.84521462]
[1738760627652,0.00538522,2788.0,2787.6,3.2078]
[1738760627949,0.00538522,2788.0,2787.7,4.62119485]
[1738760629449,0.00538522,2788.0,2787.7,7.66405664]
[1738760631151,0.03053013,2787.9,2787.7,7.66405664]
[1738760632155,0.03053013,2787.8,2787.7,4.62119485]
[1738760633261,0.03053013,2787.8,2787.7,7.66405664]
[1738760634662,0.03053013,2787.8,2787.7,7.04838296]
[1738760636267,0.03053013,2787.8,2787.7,7.59578296]
[1738760636558,0.03053013,2787.8,2787.7,7.04838296]
[1738760637062,0.07946264,2787.8,2787.7,7.04838296]
[1738760637757,0.07946264,2787.8,2787.3,0.3592]
[1738760637758,0.71727,2787.4,2786.9,1.15306348]
[1738760637959,3.92504,2787.5,2786.7,0.00538522]
[1738760638155,1.79821522,2788.0,2786.9,3.2078]
[1738760638156,0.07946264,2787.2,2786.9,3.2078]
[1738760638356,0.07946264,2787.2,2787.1,2.42718811]
[1738760639761,0.07946264,2787.2,2787.1,7.18233642]
[1738760641862,0.00538522,2788.0,2787.5,2.42718811]
[1738760642062,0.00538522,2788.0,2787.6,3.7685]
[1738760642264,0.00538522,2788.0,2787.6,8.40206306]
[1738760643064,0.00538522,2788.0,2787.6,8.93136306]
[1738760643262,0.00538522,2788.0,2787.8,2.42718811]
[1738760643464,0.00538522,2788.0,2787.9,3.2078]
[1738760643659,0.00538522,2788.0,2787.9,7.94176759]
[1738760644863,0.00538522,2788.0,2787.9,8.49366759]
[1738760645558,0.00538522,2788.0,2787.9,3.2078]
[1738760646268,0.00538522,2788.0,2787.6,0.5607]
[1738760646670,0.00538522,2788.0,2787.7,4.60624766]
[1738760647261,0.00538522,2788.0,2787.4,3.2078]
[1738760647262,3.93029522,2788.0,2787.4,3.2078]
[1738760647463,1.0983,2787.9,2787.4,3.2078]
[1738760647671,41.8983,2787.9,2787.4,3.2078]
[1738760647868,3.2078,2787.6,2787.0,3.7369]
[1738760648074,0.71727,2787.4,2787.0,3.2078]
[1738760648567,0.5473,2787.3,2787.0,3.2078]
[1738760650370,0.5719,2787.2,2787.0,3.2078]
[1738760650565,0.5719,2787.2,2786.7,3.21318522]
[1738760651978,3.2078,2787.9,2787.0,3.2078]
[1738760652178,3.2078,2787.9,2787.1,0.5444]
[1738760652179,0.5855,2787.7,2787.1,0.5444]
[1738760652377,0.5855,2787.7,2787.1,5.25178382]
[1738760654982,0.5855,2787.7,2787.2,2.42718811]
[1738760655377,0.5855,2787.7,2787.3,4.71473222]
[1738760656580,0.5794,2787.8,2787.5,3.2078]
[1738760656785,0.5794,2787.8,2787.5,5.63498811]
[1738760657080,0.5794,2787.8,2787.6,4.73102447]
[1738760657684,0.5794,2787.8,2787.5,3.2078]
[1738760658083,0.5794,2787.8,2787.2,2.42718811]
[1738760658491,0.5794,2787.8,2787.3,4.60955123]
[1738760661395,0.5794,2787.8,2787.3,7.81735123]
[1738760662282,3.7872,2787.8,2787.1,0.5444]
[1738760662487,4.50438,2787.8,2787.1,0.5444]
[1738760662691,40.8,2787.7,2787.1,0.5444]
[1738760663091,41.51718,2787.7,2787.1,0.5444]
[1738760663287,40.8,2787.7,2787.1,0.5444]
[1738760664691,3.7872,2787.8,2787.1,0.5444]
[1738760664692,3.7872,2787.8,2787.2,2.42718811]
[1738760664896,0.5794,2787.8,2787.5,3.2078]
[1738760665093,0.5794,2787.8,2787.6,0.5578]
[1738760665296,3.7872,2787.8,2787.6,4.75383293]
[1738760665485,3.7872,2787.8,2787.1,3.7656]
[1738760665685,0.71718,2787.7,2787.1,3.2078]
[1738760665897,0.7172,2787.7,2787.1,3.2078]
[1738760666197,0.71723,2787.6,2787.1,3.2078]
[1738760666391,1.1291,2787.5,2787.1,3.2078]
[1738760666792,0.71727,2787.4,2787.1,3.2078]
[1738760666997,1.1291,2787.5,2787.1,3.2078]
[1738760667495,0.5692,2787.5,2787.1,3.2078]
[1738760668493,3.7872,2787.8,2787.2,4.57718948]
[1738760668802,3.7872,2787.8,2787.2,7.58417759]
[1738760668993,0.00538522,2788.0,2787.5,5.63498811]
[1738760669293,0.00538522,2788.0,2787.9,3.2078]
[1738760669499,0.00538522,2788.0,2787.9,3.7376]
[1738760669690,0.00538522,2788.0,2787.9,4.2875]
[1738760673294,0.00538522,2788.0,2787.9,1.0797]
[1738760673800,0.00538522,2788.0,2787.9,0.5499]
[1738760677596,0.00538522,2788.0,2787.9,5.31581936]
[1738760685910,11.65017697,2788.9,2788.4,0.71699]
[1738760686210,11.65017697,2788.9,2787.9,15.72100747]
[1738760686211,1.08721381,2788.9,2788.8,5.63498811]
[1738760686401,4.9317,2789.9,2788.8,5.63498811]
[1738760686608,1.1418,2789.9,2789.3,5.63498811]
[1738760686809,0.5601,2789.9,2789.3,5.63498811]
[1738760687003,0.00538522,2789.6,2789.3,10.30817916]
[1738760687202,15.39306614,2789.4,2789.3,10.30817916]
[1738760687809,3.74358958,2789.4,2789.3,15.30817916]
[1738760688014,3.2078,2790.8,2789.3,18.09456727]
[1738760688213,3.2078,2790.8,2790.0,2.42718811]
[1738760689215,0.00538522,2790.6,2790.1,7.97423552]
[1738760691011,0.00538522,2790.6,2790.3,2.42718811]
[1738760691204,0.00538522,2790.6,2790.4,3.2078]
[1738760691409,0.00538522,2790.6,2790.4,7.783349]
[1738760694715,0.00538522,2790.6,2790.4,8.141749]
[1738760701420,0.00538522,2790.6,2790.4,7.783349]
[1738760702316,0.5453,2791.2,2790.5,2.42718811]
[1738760702521,0.5453,2791.2,2791.1,5.63498811]
[1738760703122,0.563,2791.4,2791.1,10.22231832]
[1738760703428,0.527,2791.9,2791.5,0.71618]
[1738760703719,0.574,2792.6,2791.8,8.06217622]
[1738760703921,0.527,2792.5,2792.4,5.63498811]
[1738760704322,0.53237548,2792.5,2792.4,5.63498811]
[1738760705415,0.53237548,2792.5,2792.4,10.28386242]
[1738760706819,0.00537548,2792.5,2792.4,10.28386242]
[1738760707020,0.00537548,2792.5,2792.4,10.64226242]
[1738760708424,0.00537548,2792.5,2792.4,10.28386242]
[1738760713835,0.00537548,2792.5,2792.4,3.2078]
[1738760714029,0.00537548,2792.5,2792.1,2.42718811]
[1738760714524,0.54207548,2792.5,2792.1,2.42718811]
[1738760714724,40.8,2792.4,2792.1,2.42718811]
[1738760714926,0.54207548,2792.5,2792.1,2.42718811]
[1738760715320,0.54207548,2792.5,2791.8,5.99338811]
[1738760715521,3.2078,2792.1,2791.8,2.42718811]
[1738760715727,0.71609,2792.0,2790.9,2.42718811]
[1738760716030,3.2078,2791.5,2790.8,1.197]
[1738760716226,0.5367,2791.4,2790.6,5.99338811]
[1738760716430,0.5367,2791.4,2790.3,5.63498811]
[1738760716431,3.2078,2791.2,2790.3,5.63498811]
[1738760716630,2.96388811,2791.4,2790.3,5.63498811]
[1738760716829,3.2078,2791.2,2790.3,10.35981826]
[1738760717039,3.2078,2791.2,2790.6,3.2078]
[1738760717224,1.1046,2791.1,2790.6,3.2078]
[1738760717426,1.1046,2791.1,2790.9,2.42718811]
[1738760717632,1.10997548,2791.1,2790.9,2.42718811]
[1738760717827,1.10997548,2791.1,2790.7,4.56652666]
[1738760718022,1.10997548,2791.1,2790.6,5.64036359]
[1738760718228,1.10997548,2791.1,2790.8,4.56652666]
[1738760718421,1.10997548,2791.1,2790.9,2.42718811]
[1738760718634,1.10997548,2791.1,2790.8,4.56652666]
[1738760718635,1.10997548,2791.1,2790.8,3.03467968]
[1738760719735,0.53237548,2791.1,2790.9,4.58786725]
[1738760721038,0.00537548,2791.1,2790.9,4.58786725]
[1738760724033,0.00537548,2791.1,2790.6,0.00537548]
[1738760725341,0.00537548,2791.1,2790.7,4.76524258]
[1738760725642,0.00537548,2791.1,2790.8,6.24247968]
[1738760726036,0.00537548,2791.1,2790.9,4.76524258]
[1738760728236,0.00537548,2791.1,2790.9,4.76072616]
[1738760728640,0.00537548,2791.1,2790.6,0.00537548]
[1738760729740,0.00537548,2791.1,2790.8,3.03467968]
[1738760729938,0.00537548,2791.1,2790.6,0.00537548]
[1738760731240,3.2078,2790.9,2790.6,0.00537548]
[1738760731439,0.5792,2790.8,2790.6,0.00537548]
[1738760731943,3.2078,2790.9,2790.6,0.00537548]
[1738760732333,3.2078,2790.9,2790.8,3.03467968]
[1738760732643,0.00537548,2791.1,2790.8,3.03467968]
[1738760736542,0.00537548,2791.1,2790.9,4.73025065]
[1738760738846,0.00537548,2791.1,2791.0,2.42084886]
[1738760739348,0.00537548,2791.1,2791.0,7.15135361]
[1738760746146,0.00537548,2791.1,2791.0,12.15135361]
[1738760746655,0.00537548,2791.1,2791.0,7.15135361]
[1738760746854,0.00537548,2791.1,2791.0,12.15135361]
[1738760747553,1.1286,2792.0,2791.0,14.02072709]
[1738760747856,1.1286,2792.0,2791.9,2.42084886]
[1738760753552,1.1286,2792.0,2791.7,3.2078]
[1738760756756,1.1286,2792.0,2791.6,2.42084886]
[1738760756950,1.1286,2792.0,2791.6,2.77924886]
[1738760757156,1.1286,2792.0,2791.7,4.62192542]
[1738760758655,1.1286,2792.0,2791.9,2.42084886]
[1738760759459,0.00537548,2792.2,2791.9,7.07110978]
[1738760759664,0.00537548,2792.2,2792.0,3.2078]
[1738760760457,0.00537548,2792.2,2791.9,2.42084886]
[1738760760458,0.00537548,2792.2,2791.6,2.42084886]
[1738760763554,3.2078,2792.0,2791.3,5.62864886]
[1738760763761,3.2078,2791.4,2790.7,2.42084886]
[1738760763960,1.6946,2791.3,2790.7,2.42084886]
[1738760764158,1.6946,2791.3,2790.7,7.07354413]
[1738760765060,1.6946,2791.3,2791.0,2.42084886]
[1738760765661,0.5684,2791.3,2791.1,4.75978282]
[1738760765856,3.2078,2792.4,2791.2,4.4048]
[1738760766060,1.1128,2792.6,2792.1,2.42084886]
[1738760766562,1.1128,2792.6,2792.1,7.18063168]
[1738760766958,0.5684,2792.6,2792.1,7.18063168]
[1738760767167,3.2078,2793.4,2792.1,12.53903168]
[1738760767466,3.7594,2793.4,2793.3,2.42084886]
[1738760767658,0.5516,2793.4,2793.3,2.42084886]
[1738760769569,0.00353429,2793.6,2793.3,2.42084886]
[1738760771167,0.00353429,2793.6,2793.4,4.66283234]
[1738760771368,0.00353429,2793.6,2793.4,5.21253234]
[1738760772375,3.2078,2794.5,2794.2,2.42084886]
[1738760772872,3.2078,2794.5,2794.2,2.77924886]
[1738760773170,3.2078,2794.8,2794.3,1.5554]
[1738760773370,0.5408,2795.2,2794.5,2.42084886]
[1738760773574,3.2078,2795.0,2794.8,2.42084886]
[1738760773875,3.2078,2795.0,2794.4,3.2078]
[1738760773876,3.2078,2795.0,2794.6,0.00537548]
[1738760774368,3.2078,2795.0,2794.9,2.42084886]
[1738760774570,3.2078,2795.0,2794.6,2.42622434]
[1738760774769,3.2078,2795.0,2794.6,0.00537548]
[1738760775669,0.5501,2795.5,2794.8,6.23468476]
[1738760775873,0.5429,2795.7,2795.4,3.02688476]
[1738760776170,3.2078,2795.8,2795.4,3.02688476]
[1738760776475,3.2078,2795.8,2795.7,3.02688476]
[1738760776670,3.2078,2796.5,2795.7,6.23468476]
[1738760776871,3.2078,2796.5,2796.3,3.02688476]
[1738760777271,3.2078,2796.5,2796.4,4.72046383]
[1738760777467,3.2078,2796.5,2796.3,3.02688476]
[1738760778173,3.2078,2797.1,2796.3,3.02688476]
[1738760778373,3.2078,2797.1,2796.4,4.57920154]
[1738760778580,3.2078,2797.1,2796.3,3.02688476]
[1738760779381,3.2078,2796.8,2796.3,3.02688476]
[1738760779782,3.2078,2796.5,2796.1,0.00536557]
[1738760780978,3.2078,2796.9,2796.3,3.02688476]
[1738760781180,3.2078,2796.9,2796.6,3.02688476]
[1738760781782,3.2078,2797.6,2796.8,3.2078]
[1738760781980,3.2078,2798.0,2797.5,3.02688476]
[1738760782177,40.8,2797.9,2797.5,3.02688476]
[1738760782375,40.8,2797.9,2797.2,3.02688476]
[1738760782578,40.8,2797.9,2797.4,0.00536557]
[1738760782782,3.92242,2797.7,2797.4,0.00536557]
[1738760783081,3.02688476,2797.5,2796.2,6.23468476]
[1738760783280,3.2078,2796.4,2795.9,3.02688476]
[1738760783778,40.8,2796.0,2795.9,3.2078]
[1738760783972,3.2078,2796.9,2795.9,3.2078]
[1738760784178,3.2078,2796.9,2796.2,3.02688476]
[1738760784382,0.00533256,2796.7,2796.2,3.02688476]
[1738760785480,0.00533256,2796.7,2796.5,3.02688476]
[1738760786976,0.00533256,2796.7,2796.6,4.64285032]
[1738760787178,0.00533256,2796.7,2796.5,3.02688476]
[1738760789177,0.00533256,2796.7,2796.1,3.02688476]
[1738760789384,3.92271,2796.6,2795.8,3.02688476]
[1738760789578,3.2078,2796.3,2795.8,3.02688476]
[1738760790781,2.5205,2796.6,2796.1,3.02688476]
[1738760790981,5.1948,2796.6,2796.4,3.02688476]
[1738760791180,3.2078,2796.6,2796.4,3.02688476]
[1738760792791,3.2078,2796.6,2796.1,3.02688476]
[1738760793089,3.2078,2796.3,2795.8,3.02688476]
[1738760793784,3.92278,2796.3,2795.8,3.02688476]
[1738760794082,3.2078,2796.3,2795.8,3.02688476]
[1738760794474,3.2078,2795.9,2795.7,0.00536557]
[1738760794881,0.5376,2795.8,2795.7,0.00536557]
[1738760795389,6.2527,2795.8,2795.7,0.00536557]
[1738760795688,6.2527,2795.8,2794.9,3.02688476]
[1738760795689,0.71513,2795.7,2794.9,3.02688476]
[1738760795876,0.71513,2795.7,2794.8,0.5528]
[1738760795877,3.2078,2795.3,2795.2,3.02688476]
[1738760796282,44.0078,2795.3,2795.2,3.02688476]
[1738760797287,3.2078,2795.3,2795.2,3.02688476]
[1738760800182,3.2078,2795.6,2795.2,3.02688476]
[1738760801392,3.2078,2795.6,2795.5,3.02688476]
[1738760801594,3.2078,2795.6,2795.2,3.02688476]
[1738760803495,3.2078,2795.6,2795.5,3.02688476]
[1738760805393,3.2078,2796.0,2795.5,3.02688476]
[1738760806997,3.2078,2795.7,2795.2,3.02688476]
[1738760809003,3.2078,2795.4,2795.0,0.00536557]
[1738760810296,3.2078,2795.4,2795.2,3.02688476]
[1738760811200,3.2078,2795.4,2795.0,0.00536557]
[1738760814405,3.2078,2795.4,2795.2,3.02688476]
[1738760814602,3.2078,2795.4,2795.2,2.41439743]
[1738760815512,3.2078,2795.4,2795.0,0.00536557]
[1738760818116,0.71524,2795.3,2795.0,0.00536557]
[1738760818505,0.5699,2795.2,2795.0,0.00536557]
[1738760818713,3.2078,2795.1,2795.0,0.00536557]
[1738760821513,3.92308,2795.1,2795.0,0.00536557]
[1738760821721,3.2078,2795.1,2795.0,0.00536557]
[1738760825218,3.2078,2795.1,2794.3,2.41439743]
[1738760825219,0.71537,2794.8,2794.3,2.41439743]
[1738760825416,3.2078,2794.6,2794.1,0.5799]
[1738760825719,44.0078,2794.6,2794.1,0.5799]
[1738760826315,44.01316557,2794.6,2794.1,0.58526557]
[1738760826516,44.01316557,2794.6,2794.3,2.41439743]
[1738760827115,0.00536557,2794.6,2794.3,2.41439743]
[1738760833319,3.21316557,2794.6,2794.3,2.41439743]
[1738760834124,0.71548,2794.4,2794.1,0.00536557]
[1738760834426,3.92331,2794.2,2794.1,0.00536557]
[1738760835019,3.92331,2794.2,2793.5,0.5574]
[1738760835224,40.8,2794.3,2793.4,2.41439743]
[1738760835225,3.2078,2793.6,2793.4,2.41439743]
[1738760836627,3.2078,2793.6,2793.2,0.00536557]
[1738760841237,3.2078,2793.6,2793.4,2.41439743]
[1738760841735,3.2078,2794.0,2793.4,2.41439743]
[1738760841931,3.2078,2794.0,2793.7,2.41439743]
[1738760842228,3.2078,2794.0,2793.4,2.41439743]
[1738760842637,3.2078,2793.7,2793.2,0.00536557]
[1738760842929,0.585,2793.6,2793.2,0.00536557]
[1738760843134,3.2078,2793.3,2793.2,0.00536557]
[1738760843829,3.2078,2793.3,2792.6,0.5668]
[1738760843830,3.2078,2793.3,2792.5,2.41439743]
[1738760844035,3.2078,2793.3,2792.2,3.51659743]
[1738760844036,3.2078,2792.6,2792.2,3.51659743]
[1738760844229,3.92367,2792.9,2792.2,3.51659743]
[1738760844428,0.585,2792.8,2792.2,3.51659743]
[1738760844929,3.2078,2792.6,2792.2,0.5424]
[1738760845234,3.2078,2792.6,2792.2,2.962163]
[1738760845734,3.2078,2792.6,2792.5,2.41439743]
[1738760853935,0.00536557,2792.8,2792.5,2.41439743]
[1738760854535,0.5675,2793.4,2792.7,3.2078]
[1738760854737,0.5675,2793.4,2793.1,2.41439743]
[1738760854940,3.2078,2793.5,2793.1,2.41439743]
[1738760855135,3.2078,2793.5,2793.4,2.41439743]
[1738760856737,0.00536557,2793.7,2793.4,2.41439743]
[1738760857445,0.00536557,2793.7,2793.1,2.41439743]
[1738760857637,0.00536557,2793.7,2793.4,2.41439743]
[1738760862445,0.00536557,2793.7,2793.1,0.547]
[1738760862446,3.2078,2793.6,2793.1,0.547]
[1738760862750,3.92356,2793.3,2792.5,2.41439743]
[1738760862950,3.2078,2793.0,2792.5,2.41439743]
[1738760863343,40.8,2792.9,2792.5,2.41439743]
[1738760867655,3.2078,2793.0,2792.5,2.41439743]
[1738760868050,40.8,2792.9,2792.5,2.41439743]
[1738760869055,3.2078,2792.7,2792.5,2.41439743]
[1738760871156,3.2078,2793.1,2792.6,4.56579505]
[1738760871355,3.2078,2793.1,2793.0,2.41439743]
[1738760871758,0.5293,2793.2,2793.0,2.41439743]
[1738760873057,3.2078,2793.1,2792.4,2.41439743]
[1738760874065,3.92362,2793.1,2792.4,2.41439743]
[1738760874263,3.92362,2793.1,2792.2,3.78166557]
[1738760874264,3.2078,2793.1,2792.2,3.78166557]
[1738760874557,0.71593,2792.6,2792.2,0.00536557]
[1738760874762,1.138,2792.5,2792.2,0.00536557]
[1738760875058,0.716,2792.3,2792.2,0.00536557]
[1738760875764,45.8,2792.3,2791.6,3.2078]
[1738760875967,3.2078,2791.8,2791.2,2.41439743]
[1738760876172,3.2078,2791.5,2791.0,0.5729]
[1738760876375,3.2078,2791.5,2790.9,2.41439743]
[1738760876774,3.2078,2791.5,2790.8,0.5387]
[1738760877068,3.21316557,2791.5,2790.9,0.00536557]
[1738760878069,0.01368249,2791.2,2790.9,0.00536557]
[1738760878864,3.22148249,2791.2,2790.9,0.00536557]
[1738760879070,0.01368249,2791.1,2790.9,0.00536557]
[1738760879568,0.71633,2791.0,2790.3,0.5387]
[1738760879769,3.2078,2790.7,2790.0,6.24304386]
[1738760879965,3.2078,2790.4,2789.7,7.37554386]
[1738760880166,3.22148249,2790.4,2790.0,3.03524386]
[1738760881177,0.01368249,2790.2,2790.0,3.03524386]
[1738760882078,0.01368249,2790.1,2790.0,3.03524386]
[1738760882781,0.01368249,2790.1,2790.0,6.24304386]
[1738760882983,3.7782,2791.0,2790.0,15.93501348]
[1738760883179,3.2078,2791.3,2790.8,3.03524386]
[1738760883479,3.2078,2791.3,2791.1,3.03524386]
[1738760883984,3.2078,2791.3,2790.9,4.69196962]
[1738760884178,3.2078,2791.3,2790.8,3.03524386]
[1738760884378,3.2078,2791.3,2791.0,4.6972501]
[1738760884982,3.2078,2791.3,2790.8,3.03524386]
[1738760886084,3.2078,2791.4,2790.8,3.03524386]
[1738760886285,3.2078,2791.4,2790.9,0.5489]
[1738760887390,3.2078,2791.7,2790.9,0.5489]
[1738760887593,3.2078,2791.4,2790.9,0.5489]
[1738760890083,3.2078,2791.7,2791.3,3.2078]
[1738760890279,0.5821,2792.3,2791.4,3.60074386]
[1738760890485,3.2078,2792.2,2791.4,8.26402881]
[1738760890688,3.2078,2791.8,2791.3,3.2078]
[1738760891090,40.8,2791.7,2791.3,3.2078]
[1738760892984,3.21317528,2791.8,2791.3,3.2078]
[1738760893388,0.5841,2791.7,2791.3,3.2078]
[1738760893590,41.3841,2791.7,2791.3,3.2078]
[1738760894488,40.8,2791.7,2791.4,3.03524386]
[1738760894694,3.21317528,2791.8,2791.4,7.6609039]
[1738760895290,0.00537528,2791.8,2791.7,3.03524386]
[1738760895791,0.00537528,2791.8,2791.7,7.61458192]
[1738760895993,0.00537528,2791.8,2791.7,8.78248192]
[1738760896391,40.8,2792.6,2791.7,8.78248192]
[1738760896595,40.8,2792.6,2792.0,3.03524386]
[1738760897590,40.80537528,2792.6,2792.0,3.03524386]
[1738760898497,3.2078,2792.5,2792.0,3.03524386]
[1738760898693,8.1588,2792.5,2791.7,3.00269858]
[1738760898892,3.2078,2792.2,2791.4,2.42039858]
[1738760899088,0.5298,2792.1,2791.4,2.42039858]
[1738760899287,1.1091,2792.1,2791.4,2.42039858]
[1738760899990,1.1091,2792.1,2791.7,2.42039858]
[1738760900592,1.1091,2792.1,2791.3,3.0335758]
[1738760900998,3.2078,2791.9,2791.3,3.0335758]
[1738760901298,1.1091,2792.1,2791.3,3.0335758]
[1738760902293,3.2078,2791.8,2791.2,0.00537528]
[1738760904899,3.2078,2791.8,2791.3,3.0335758]
[1738760905097,3.2078,2791.8,2791.2,0.00537528]
[1738760909201,3.2078,2791.8,2791.3,3.0335758]
[1738760909399,3.2078,2791.9,2791.3,6.2413758]
[1738760910194,1.1091,2792.1,2791.3,6.2413758]
[1738760910698,3.2078,2792.2,2791.9,3.0335758]
[1738760911198,3.2078,2792.2,2792.0,0.5807]
[1738760911395,3.2078,2792.2,2791.6,6.2413758]
[1738760911591,40.8,2792.1,2791.6,6.2413758]
[1738760913394,3.7824,2792.5,2791.9,6.2413758]
[1738760913595,3.2078,2792.5,2792.3,3.0335758]
[1738760917606,3.7361,2792.5,2792.1,0.3584]
[1738760918499,0.00537528,2792.6,2792.4,3.2078]
[1738760918905,0.00537528,2792.6,2792.5,4.58397998]
[1738760920605,0.00537528,2792.6,2792.4,3.2078]
[1738760922701,0.00537528,2792.6,2792.5,2.41868233]
[1738760924610,40.8,2793.1,2792.5,12.75935953]
[1738760924807,0.5333,2793.8,2792.9,8.04516466]
[1738760925012,1.0636,2794.2,2793.7,2.41868233]
[1738760925316,0.574,2795.0,2794.1,6.34200233]
[1738760925506,0.574,2795.0,2794.7,2.41868233]
[1738760925704,0.5303,2795.2,2794.8,3.2078]
[1738760925906,0.00537528,2795.1,2795.0,2.41868233]
[1738760928312,0.00537528,2795.1,2794.7,2.41868233]
[1738760928703,3.21317528,2795.1,2794.7,3.02636496]
[1738760928913,3.21317528,2795.1,2794.6,0.00537528]
[1738760928914,3.2078,2794.8,2794.6,0.00537528]
[1738760929210,3.2078,2794.8,2794.1,7.42916496]
[1738760929211,3.2078,2794.8,2794.1,4.22136496]
[1738760929406,3.2078,2794.5,2794.1,1.195]
[1738760929608,3.2078,2794.5,2793.8,3.02636496]
[1738760930309,3.2078,2794.5,2793.9,0.00537528]
[1738760930913,3.2078,2794.5,2794.1,3.02636496]
[1738760931110,3.2078,2794.5,2794.4,3.02636496]
[1738760932320,40.8,2794.9,2794.4,6.23416496]
[1738760934206,40.8,2794.9,2793.9,0.00537528]
[1738760934207,3.2078,2794.7,2793.9,0.00537528]
[1738760934415,3.2078,2794.4,2793.9,0.00537528]
[1738760934616,1.1466,2794.3,2793.9,0.00537528]
[1738760935107,3.2078,2794.7,2794.1,6.23416496]
[1738760935507,3.2078,2794.7,2793.9,0.00537528]
[1738760936017,3.2078,2794.4,2793.9,0.00537528]
[1738760936208,0.5498,2794.3,2793.9,0.00537528]
[1738760937513,3.2078,2794.1,2793.9,0.00537528]
[1738760937713,0.5607,2794.0,2793.9,0.00537528]
[1738760937912,1.1256,2794.0,2793.9,0.00537528]
[1738760938113,41.9256,2794.0,2793.9,0.00537528]
[1738760938313,1.1256,2794.0,2793.9,0.00537528]
[1738760942213,3.02636496,2794.9,2793.9,0.00537528]
[1738760942214,3.2078,2794.9,2793.9,4.63044958]
[1738760942418,1.671,2795.0,2794.5,3.02636496]
[1738760943417,0.5556,2795.0,2794.6,3.2078]
[1738760943619,0.5556,2795.0,2794.7,0.5794]
[1738760944018,3.2078,2794.8,2794.2,3.59226496]
[1738760949419,0.5346,2794.9,2794.2,6.80006496]
[1738760950127,3.21317528,2795.1,2794.2,6.80006496]
[1738760950825,0.71532,2795.0,2794.2,6.80006496]
[1738760951129,3.21317528,2795.1,2794.5,6.23416496]
[1738760951820,3.21317528,2795.1,2794.5,3.2078]
[1738760952021,1.148,2795.0,2794.5,3.2078]
[1738760952222,1.148,2795.0,2794.2,6.80006496]
[1738760953322,3.21317528,2795.1,2794.2,6.80006496]
[1738760953522,3.21317528,2795.1,2794.5,3.02636496]
[1738760954919,3.21317528,2795.1,2794.6,4.64934391]
[1738760955224,3.21317528,2795.1,2794.7,0.542]
[1738760957129,3.21317528,2795.1,2794.8,3.02636496]
[1738760958833,3.21317528,2795.1,2794.8,2.41488691]
[1738760959329,3.21317528,2795.1,2794.5,3.2078]
[1738760959330,3.92846528,2795.1,2794.5,5.62268691]
[1738760959729,0.5355,2795.0,2794.5,5.62268691]
[1738760960528,0.5355,2795.0,2794.3,0.5715]
[1738760960529,3.2078,2794.8,2794.3,0.5715]
[1738760963033,3.2078,2794.8,2794.5,2.41488691]
[1738760963832,0.5733,2794.9,2794.5,2.41488691]
[1738760964036,0.5355,2795.0,2794.5,2.41488691]
[1738760964425,0.00537528,2795.1,2794.8,2.41488691]
[1738760964629,0.00537528,2795.1,2794.9,0.5569]
[1738760964835,0.00537528,2795.1,2794.9,1.1395]
[1738760965439,3.2078,2795.8,2795.0,7.14483226]
[1738760965727,3.2078,2796.2,2795.7,2.41488691]
[1738760965934,3.2078,2796.2,2795.8,0.5569]
[1738760966436,3.2078,2796.2,2796.0,2.41488691]
[1738760966635,3.2078,2796.2,2795.9,3.02374156]
[1738760967131,0.00536509,2796.3,2795.9,3.02374156]
[1738760968032,0.00536509,2796.3,2796.2,3.02374156]
[1738760968722,0.00536509,2796.3,2796.0,0.3584]
[1738760968930,0.00536509,2796.3,2795.9,3.02374156]
[1738760969230,0.00536509,2796.3,2796.1,4.72459445]
[1738760969427,0.00536509,2796.3,2796.2,3.02374156]
[1738760969733,0.00536509,2796.3,2796.2,7.74833601]
[1738760970028,0.00536509,2796.3,2796.2,3.02374156]
[1738760977940,0.00536509,2796.3,2796.2,3.57734156]
[1738760978238,40.8,2797.2,2796.2,13.17262214]
[1738760978540,3.2078,2797.3,2797.0,3.02374156]
[1738760978834,0.5585,2797.5,2797.0,3.02374156]
[1738760979038,0.5585,2797.5,2797.1,4.59528058]
[1738760979334,0.5585,2797.5,2797.0,3.02374156]
[1738760979642,0.5585,2797.5,2796.3,0.5316]
[1738760979643,3.2078,2797.3,2796.6,3.2078]
[1738760980139,3.2078,2797.3,2796.4,7.58118766]
[1738760980341,3.2078,2797.3,2796.4,3.02374156]
[1738760980537,3.2078,2797.0,2796.4,3.02374156]
[1738760980732,3.2078,2796.7,2796.2,0.5536]
[1738760980935,0.5458,2796.9,2795.5,3.38134156]
[1738760980936,3.2078,2796.3,2795.5,3.38134156]